bitfinex/quotes_ETHUSD_20220105
["timestamp","ask_amount","ask_price","bid_price","bid_amount"]
[1641421167236,5.6926,3513.4,3513.3,1.02484698]
[1641421167482,5.6926,3513.4,3513.3,1.45209853]
[1641421167683,5.6926,3513.4,3513.3,0.42952525]
[1641421167886,5.65402525,3513.4,3513.3,0.42952525]
[1641421169086,0.1096,3515.9,3515.3,1.0302533]
[1641421169285,5.99484982,3516.8,3515.0,0.01231212]
[1641421169286,0.328,3515.8,3515.0,0.01231212]
[1641421169485,4.06993309,3516.0,3515.0,0.01231212]
[1641421169686,1.10213,3515.9,3515.0,0.01231212]
[1641421169887,1.11293004,3515.9,3515.0,0.01231212]
[1641421170184,1.11293004,3515.9,3515.8,0.52614663]
[1641421170385,1.11293004,3515.9,3514.8,0.13819997]
[1641421170386,2.11753004,3515.9,3514.8,0.13819997]
[1641421170586,3.50217004,3515.9,3514.8,0.13819997]
[1641421170786,0.01023162,3515.8,3514.8,0.13819997]
[1641421170987,0.01023162,3515.8,3514.3,0.01261003]
[1641421171242,0.0096632,3515.7,3514.2,0.13819997]
[1641421171441,0.0096632,3515.7,3515.3,0.55316762]
[1641421171638,0.00909477,3515.6,3515.3,0.55316762]
[1641421171939,0.00852635,3515.5,3515.3,0.55316762]
[1641421172343,0.00795793,3515.4,3514.5,1.14871619]
[1641421172740,0.0073895,3515.3,3514.2,0.13819997]
[1641421173142,0.00682108,3515.2,3514.4,0.01224796]
[1641421173544,0.71157,3515.6,3514.2,0.13819997]
[1641421173545,0.7116,3515.5,3514.2,0.13819997]
[1641421173745,0.7116,3515.5,3514.3,1.23554524]
[1641421173942,0.72012635,3515.5,3514.3,1.23554524]
[1641421174142,0.00852635,3515.5,3514.3,1.24781635]
[1641421174544,0.00852635,3515.5,3514.9,1.21577994]
[1641421174746,5.6896,3515.4,3515.0,0.46835583]
[1641421175185,0.0073895,3515.3,3515.0,0.46835583]
[1641421175587,0.00682108,3515.2,3515.0,0.46835583]
[1641421176088,0.00625266,3515.1,3515.0,0.46835583]
[1641421176695,0.00625266,3515.1,3514.4,0.00125898]
[1641421176696,0.46835583,3515.0,3514.4,0.00125898]
[1641421177092,5.69471581,3514.9,3514.4,0.00125898]
[1641421177493,0.00454739,3514.8,3514.4,0.00125898]
[1641421177692,5.6896,3514.7,3514.4,0.00125898]
[1641421177893,5.69357896,3514.7,3514.4,0.00125898]
[1641421178092,0.00341054,3514.6,3514.4,0.00125898]
[1641421178294,5.6896,3514.5,3514.4,0.00125898]
[1641421178494,5.69244212,3514.5,3514.4,0.00125898]
[1641421180944,5.69244212,3514.5,3514.4,0.57189307]
[1641421181143,5.69244212,3514.5,3514.4,0.00125898]
[1641421181743,5.67291412,3514.5,3514.4,0.00125898]
[1641421183184,5.67291412,3514.5,3513.3,0.00397897]
[1641421183390,2.13567,3514.0,3513.3,0.00397897]
[1641421183585,2.13567,3514.0,3513.0,1.09351566]
[1641421183586,2.13567,3514.0,3513.1,0.00511581]
[1641421184690,2.13567,3514.0,3513.4,0.42768526]
[1641421184891,0.74841717,3513.8,3513.4,0.42768526]
[1641421185092,6.381972,3513.7,3513.5,0.00284212]
[1641421185294,7.093882,3513.7,3513.5,0.00284212]
[1641421185691,7.093882,3513.7,3513.5,0.00417878]
[1641421185891,6.381972,3513.7,3513.5,0.00417878]
[1641421186091,6.381972,3513.7,3513.6,0.0022737]
[1641421186935,5.670072,3513.7,3513.6,1.29057472]
[1641421187141,5.670072,3513.7,3513.6,0.0022737]
[1641421188750,5.670072,3513.7,3510.5,7.0711384]
[1641421188751,6.87745383,3511.7,3510.5,7.0711384]
[1641421188942,0.42768526,3513.4,3509.2,0.01241961]
[1641421188943,1.96925623,3510.1,3509.2,0.01241961]
[1641421189139,1.96925623,3510.1,3508.7,1.48827752]
[1641421189140,2.56125622,3510.1,3508.7,1.48827752]
[1641421189345,2.56125622,3510.1,3508.8,16.24]
[1641421189346,0.8425,3509.9,3508.8,16.24]
[1641421189547,0.8425,3509.9,3509.8,1.0]
[1641421189743,6.5407,3509.9,3509.8,1.42699895]
[1641421189984,6.8687,3509.9,3509.8,0.93160009]
[1641421190394,6.8687,3509.9,3508.7,2.77374799]
[1641421190395,6.8687,3509.9,3509.1,2.0]
[1641421190597,0.8425,3509.7,3509.1,2.0]
[1641421190806,0.8425,3509.5,3509.2,0.00341054]
[1641421190992,0.8425,3509.3,3508.7,1.48827752]
[1641421191195,5.6982,3509.4,3508.7,1.38827752]
[1641421191196,0.8425,3509.1,3508.7,1.38827752]
[1641421191391,1.04075,3509.2,3508.7,1.38827752]
[1641421191392,0.8425,3508.9,3508.8,0.00227369]
[1641421191592,0.8425,3508.9,3508.8,1.50352404]
[1641421191593,1.1705,3508.9,3508.8,1.50352404]
[1641421192092,1.1705,3508.9,3508.7,0.14084806]
[1641421192298,1.1705,3508.9,3508.8,1.943]
[1641421192603,0.8425,3508.9,3508.7,0.14084806]
[1641421193194,0.8425,3508.9,3508.8,1.0]
[1641421194843,6.5407,3508.9,3508.8,1.0]
[1641421195049,6.5407,3508.9,3508.8,1.56690996]
[1641421195647,6.5407,3508.9,3508.8,0.96]
[1641421196046,6.55291559,3508.9,3508.8,0.96]
[1641421196346,6.55291559,3508.9,3508.7,0.14084806]
[1641421196547,6.5407,3508.9,3508.8,1.82516158]
[1641421196747,8.3747917,3510.5,3508.8,3.68436158]
[1641421196748,0.00170527,3509.5,3508.8,3.68436158]
[1641421196949,0.00170527,3509.5,3509.4,1.10597003]
[1641421197145,1.16064996,3510.1,3509.1,2.0]
[1641421197146,1.12675623,3510.1,3509.1,2.0]
[1641421197346,4.09386463,3510.0,3509.1,2.0]
[1641421197585,0.00341054,3509.4,3509.2,0.59704882]
[1641421197786,5.6991,3509.3,3509.2,0.59704882]
[1641421197990,5.70194212,3509.3,3509.2,0.59704882]
[1641421198592,5.70194212,3509.3,3509.1,2.0]
[1641421198992,0.00227369,3509.2,3509.1,2.0]
[1641421199191,5.70137369,3509.2,3509.1,2.0]
[1641421199393,2.47467369,3509.2,3509.1,2.0]
[1641421199596,2.42467369,3509.2,3509.1,2.50571835]
[1641421203540,2.42467369,3509.2,3509.1,3.87904502]
[1641421203737,2.42467369,3509.2,3509.1,2.0]
[1641421204740,2.42467369,3509.2,3509.1,2.50007045]
[1641421205001,2.42467369,3509.2,3508.7,0.14084806]
[1641421205195,2.42467369,3509.2,3506.9,2.44166671]
[1641421205196,0.79597291,3508.4,3506.9,2.44166671]
[1641421205394,0.79597291,3508.4,3506.1,1.97548734]
[1641421205395,0.58299715,3508.3,3506.6,1.43438411]
[1641421205595,1.42624,3508.1,3507.0,0.01250531]
[1641421205795,2.75267369,3508.0,3507.0,0.01250531]
[1641421205998,0.328,3507.9,3507.1,1.88940803]
[1641421206299,2.42467369,3507.8,3507.2,0.01136847]
[1641421206502,2.75267369,3507.8,3507.2,0.01136847]
[1641421206996,2.75267369,3507.8,3507.7,1.29656381]
[1641421207197,2.75267369,3507.8,3507.7,1.83899057]
[1641421207500,2.75267369,3507.8,3507.7,0.55095311]
[1641421207701,2.75267369,3507.8,3506.5,0.51476]
[1641421207702,3.00767084,3507.8,3506.5,0.51476]
[1641421207898,2.70770369,3507.8,3506.5,0.51476]
[1641421208099,2.70770369,3507.8,3506.6,0.00625266]
[1641421208736,2.70770369,3507.8,3507.4,0.52124608]
[1641421208937,0.01221713,3507.6,3507.4,0.52124608]
[1641421209138,0.71308,3508.2,3507.4,0.52124608]
[1641421209139,2.70770369,3507.5,3507.4,0.52124608]
[1641421209339,1.94848296,3507.5,3507.4,0.52124608]
[1641421209541,1.94848296,3507.5,3507.4,0.52295135]
[1641421210545,0.55848296,3507.5,3507.4,0.52295135]
[1641421210746,0.00227369,3508.1,3507.4,4.04631356]
[1641421211149,3.02595307,3509.5,3507.5,0.00113685]
[1641421211347,3.91003952,3510.0,3507.5,1.18574768]
[1641421211348,5.7004,3509.4,3507.5,1.18574768]
[1641421211546,5.7004,3509.4,3508.4,3.0]
[1641421211749,5.7004,3509.4,3508.5,1.21276973]
[1641421211947,5.7004,3509.4,3508.6,0.49560826]
[1641421212251,4.3594,3509.4,3508.6,0.49560826]
[1641421212486,1.12675623,3510.1,3510.0,1.14605027]
[1641421212694,1.12675623,3510.1,3508.9,16.24]
[1641421212695,1.0,3509.9,3508.9,16.24]
[1641421212890,1.0,3509.9,3509.1,0.01290952]
[1641421213090,1.0,3509.9,3509.1,3.01290952]
[1641421213289,1.0,3509.9,3509.1,3.0]
[1641421213691,1.0,3509.9,3509.3,1.0913084]
[1641421213891,1.0,3509.9,3509.1,3.0]
[1641421214292,1.0,3509.9,3509.2,0.50301864]
[1641421215091,1.0,3509.9,3509.5,1.00594475]
[1641421220094,1.0,3509.9,3509.6,0.328]
[1641421220297,1.12675623,3510.1,3509.8,0.01233183]
[1641421220498,5.623e-05,3510.1,3510.0,16.24]
[1641421220703,3.93798316,3512.1,3510.0,16.25215824]
[1641421220893,3.93798316,3512.1,3510.1,3.18380328]
[1641421221094,3.93798316,3512.1,3510.9,0.53652932]
[1641421221497,0.99223895,3512.8,3510.9,0.53652932]
[1641421221695,0.99223895,3512.8,3511.5,1.38688496]
[1641421221894,0.01421059,3512.5,3511.5,1.38688496]
[1641421222097,0.01421059,3512.5,3512.1,1.1541136]
[1641421222295,0.85588111,3512.8,3512.7,1.16944902]
[1641421222496,5.6935,3512.8,3512.2,0.00113684]
[1641421222797,0.00170527,3512.7,3511.7,3.18778224]
[1641421223001,3.93798316,3513.1,3512.5,0.01205102]
[1641421223395,0.7137971,3513.5,3512.6,0.50847365]
[1641421223596,0.7137971,3513.5,3512.7,1.36138264]
[1641421223597,9.71e-05,3513.5,3512.7,1.36138264]
[1641421223838,9.71e-05,3513.5,3513.4,1.08189335]
[1641421224244,0.00350764,3513.5,3513.4,1.08189335]
[1641421224441,0.00350764,3513.5,3513.4,1.594548]
[1641421225845,0.00350764,3513.5,3513.4,1.31132339]
[1641421226044,0.00350764,3513.5,3513.4,1.29827639]
[1641421226645,0.00350764,3513.5,3513.4,1.8533226]
[1641421228092,0.00157895,3513.5,3513.4,1.8533226]
[1641421228695,0.7137971,3515.7,3515.1,1.20779197]
[1641421228894,0.57386424,3515.1,3513.6,0.71141]
[1641421229116,0.01236265,3514.6,3513.0,3.0]
[1641421229596,5.69488424,3514.5,3513.1,0.00227369]
[1641421229797,6.40665424,3514.5,3513.1,0.00227369]
[1641421229996,0.71185,3514.2,3513.3,0.42913641]
[1641421230196,5.6892,3514.1,3513.3,0.42913641]
[1641421230397,1.42386,3513.9,3512.3,2.90046891]
[1641421230596,6.57121054,3514.1,3511.9,0.01245857]
[1641421230597,0.71202,3513.3,3511.9,0.01245857]
[1641421230800,0.71202,3513.3,3511.5,3.0]
[1641421230801,0.71202,3513.3,3512.4,0.00397897]
[1641421231000,0.71205,3512.8,3512.4,0.00397897]
[1641421231241,0.71205,3512.8,3511.5,3.0]
[1641421231242,5.6892,3512.7,3511.6,0.00852635]
[1641421231439,1.42424,3512.6,3511.9,0.43760806]
[1641421231639,0.71213,3512.4,3511.9,0.43760806]
[1641421231840,0.71213,3512.4,3512.0,0.00625266]
[1641421232039,5.6892,3512.3,3512.0,0.00625266]
[1641421232242,5.6892,3512.3,3511.5,3.0]
[1641421232441,0.71219,3511.9,3511.6,0.00227369]
[1641421232644,5.6892,3511.8,3511.6,0.00227369]
[1641421233241,5.6892,3511.8,3511.3,0.60222319]
[1641421233442,0.71227,3511.3,3510.8,0.00682108]
[1641421233645,0.71227,3511.1,3510.7,0.01254167]
[1641421233942,0.71227,3511.1,3510.5,1.44964051]
[1641421234343,0.47611103,3510.9,3510.6,0.00795793]
[1641421234545,5.6892,3510.8,3510.6,0.00795793]
[1641421234743,5.6892,3510.8,3510.3,0.0096632]
[1641421234744,0.71246,3510.7,3510.3,0.0096632]
[1641421235197,5.6892,3510.6,3510.3,0.0096632]
[1641421235591,5.6892,3510.6,3510.5,0.48706632]
[1641421235996,5.6892,3510.6,3510.5,0.49559267]
[1641421236995,5.6892,3510.6,3510.5,16.74779542]
[1641421236996,2.3511,3510.6,3510.5,16.74779542]
[1641421237193,2.2801,3510.6,3510.5,16.74779542]
[1641421237394,2.2801,3510.6,3510.5,0.50779542]
[1641421237593,2.13138595,3510.6,3510.5,0.50779542]
[1641421237996,2.13138595,3510.6,3510.5,0.51888875]
[1641421238848,2.13138595,3510.6,3510.5,0.506686]
[1641421240248,2.13138595,3510.6,3510.5,1.81953427]
[1641421241258,2.13138595,3510.6,3510.5,18.05953427]
[1641421242887,2.13138595,3510.6,3510.5,1.81953427]
[1641421243093,1.13138595,3510.6,3510.5,1.81953427]
[1641421243393,1.13138595,3510.6,3510.5,18.0614891]
[1641421243594,1.13138595,3510.6,3510.5,0.50864083]
[1641421244595,1.13138595,3510.6,3510.5,1.66166145]
[1641421244795,1.13138595,3510.6,3510.5,17.90166145]
[1641421245193,1.13138595,3510.6,3510.5,17.91419605]
[1641421245595,1.17337648,3511.8,3510.5,17.91419605]
[1641421245596,0.17337648,3511.8,3510.5,18.30774504]
[1641421245797,0.17337648,3511.8,3511.7,1.62606219]
[1641421245995,0.00113685,3512.2,3511.7,1.62606219]
[1641421246245,0.00113685,3512.2,3511.8,16.24]
[1641421246448,0.00113685,3512.2,3511.8,0.00113685]
[1641421246843,0.00113685,3512.2,3511.9,1.5]
[1641421249248,6.17,3513.3,3511.9,1.5]
[1641421249448,1.42401,3512.9,3512.0,0.00113685]
[1641421249746,0.71202,3512.5,3512.0,0.00113685]
[1641421250187,0.00113684,3512.4,3512.0,0.00113685]
[1641421250389,0.00113684,3512.4,3512.1,0.53693135]
[1641421250588,0.00113684,3512.4,3512.2,16.24]
[1641421251003,0.27639994,3513.6,3512.2,16.24]
[1641421251004,5.17113684,3513.3,3513.1,1.33686212]
[1641421251188,0.27639994,3513.6,3513.1,1.33686212]
[1641421251390,0.00454739,3513.2,3513.1,1.33686212]
[1641421251589,0.00454739,3513.2,3513.1,1.89038519]
[1641421251987,0.00454739,3513.2,3513.1,0.55352307]
[1641421252691,5.6926,3513.5,3513.1,0.55352307]
[1641421252692,4.69714739,3513.5,3513.1,16.79352307]
[1641421253091,0.00113685,3513.4,3513.2,1.34434216]
[1641421253294,0.00113685,3513.4,3513.2,16.23615774]
[1641421253494,3.92888289,3514.7,3513.2,16.23615774]
[1641421253495,3.92888289,3514.7,3514.0,1.42256199]
[1641421253938,0.71159,3514.9,3514.1,0.45517588]
[1641421254147,1.42324,3514.8,3514.1,0.45517588]
[1641421254342,1.43119793,3514.8,3514.1,0.45517588]
[1641421254742,7.61134793,3515.0,3514.6,1.42133433]
[1641421254944,7.61134793,3515.0,3514.7,16.24]
[1641421255141,7.61134793,3515.0,3514.8,0.47954555]
[1641421255647,7.61134793,3515.0,3514.9,16.24]
[1641421256047,7.61248477,3515.0,3514.9,16.24]
[1641421256345,7.61248477,3515.0,3514.9,16.19]
[1641421256748,7.61248477,3515.0,3514.9,11.0389565]
[1641421257146,6.17113684,3515.0,3514.9,11.0389565]
[1641421257346,0.00113684,3515.0,3514.8,0.47954555]
[1641421258399,0.00113684,3515.0,3514.8,16.71954555]
[1641421258601,0.00113684,3515.0,3514.8,0.47954555]
[1641421259404,0.00113684,3515.0,3514.2,1.50341054]
[1641421259900,0.00113684,3515.0,3514.3,0.00284212]
[1641421260301,0.71167,3514.6,3514.3,0.00284212]
[1641421260503,1.42432684,3515.0,3514.3,0.00284212]
[1641421260504,0.00113684,3515.0,3514.4,0.52635663]
[1641421260706,0.00113684,3515.0,3514.8,1.25853644]
[1641421261346,0.52500108,3515.1,3514.8,1.25853644]
[1641421261547,0.02500108,3515.1,3514.8,1.25853644]
[1641421261747,0.02500108,3515.1,3514.7,1.29281989]
[1641421262153,0.02500108,3515.1,3514.8,0.00113684]
[1641421262355,1.16599914,3515.3,3515.0,0.01211024]
[1641421262553,3.47563952,3517.1,3515.0,0.01211024]
[1641421262554,8.85281126,3517.1,3515.2,0.71103]
[1641421262756,0.0022737,3515.4,3515.3,3.44590464]
[1641421262953,8.85281126,3517.1,3515.3,3.44590464]
[1641421262954,1.42197,3516.6,3516.5,1.34808394]
[1641421263154,1.42197,3516.6,3515.3,0.39354899]
[1641421263355,0.00909477,3517.0,3516.8,0.07803]
[1641421263555,0.00464125,3517.0,3516.8,0.07803]
[1641421263755,0.55748474,3516.9,3516.8,0.07803]
[1641421264054,0.55748474,3516.9,3515.8,0.50914919]
[1641421264055,0.71115,3516.2,3516.1,1.5]
[1641421264256,1.92112499,3516.3,3516.1,1.5]
[1641421264653,1.92112499,3516.3,3515.4,0.01592471]
[1641421264855,1.92112499,3516.3,3515.9,0.00121897]
[1641421265095,1.92112499,3516.3,3515.5,0.0038851]
[1641421265096,1.9591091,3516.3,3515.5,0.0038851]
[1641421265297,1.9591091,3516.3,3516.0,0.00104298]
[1641421265496,0.71152,3515.9,3515.4,0.00290981]
[1641421265697,1.42289,3515.3,3514.5,1.5]
[1641421266097,0.46131158,3515.0,3514.5,1.5]
[1641421266398,0.00170527,3514.9,3514.5,1.5]
[1641421266597,0.00170527,3514.9,3513.0,6.62516891]
[1641421266598,0.01269507,3514.7,3513.0,2.90046891]
[1641421266798,0.01269507,3514.7,3513.8,1.13]
[1641421266799,1.42341,3514.0,3513.8,1.13]
[1641421267197,1.42341,3514.0,3513.1,0.00852635]
[1641421267396,1.42341,3514.0,3513.1,0.59953991]
[1641421267397,0.60564839,3513.6,3513.1,0.59953991]
[1641421267598,0.60564839,3513.6,3513.1,0.00852635]
[1641421267797,2.84707,3514.3,3513.2,0.00795793]
[1641421267998,1.42366,3513.6,3513.2,0.00795793]
[1641421268198,1.42366,3513.6,3512.5,1.04655212]
[1641421268599,1.42366,3513.6,3513.1,1.0501619]
[1641421268842,0.71173,3513.5,3513.2,0.50001313]
[1641421269045,0.00113685,3514.8,3513.2,0.50001313]
[1641421269046,0.00113685,3514.8,3513.3,16.24]
[1641421269243,0.00113685,3514.8,3514.6,1.10333412]
[1641421269445,0.00113685,3514.8,3514.6,1.1155886]
[1641421269844,0.00113685,3514.8,3514.7,16.68415736]
[1641421271447,0.00113685,3514.8,3514.7,16.74970635]
[1641421271645,0.00112539,3516.3,3516.2,1.15634056]
[1641421272045,0.00112539,3516.3,3516.2,17.39634056]
[1641421273298,0.00112539,3516.3,3516.2,17.46188955]
[1641421274196,0.00112539,3516.3,3516.2,17.39634056]
[1641421274800,0.00112539,3516.3,3516.2,17.40741589]
[1641421274996,0.811537,3516.8,3516.2,17.40741589]
[1641421275196,0.811537,3516.8,3516.6,0.71082]
[1641421275396,0.01080004,3516.7,3516.6,16.95082]
[1641421275796,0.01080004,3516.7,3516.6,16.24]
[1641421276439,0.01080004,3516.7,3516.4,1.42163]
[1641421276644,0.01080004,3516.7,3516.2,1.16859071]
[1641421276843,0.01023162,3516.6,3516.2,1.16859071]
[1641421277044,0.01023162,3516.6,3516.2,0.01225015]
[1641421277246,0.0096632,3516.5,3516.2,0.01225015]
[1641421277645,0.00909477,3516.4,3516.2,0.01225015]
[1641421278050,0.81253736,3516.8,3516.2,0.01225015]
[1641421278051,0.00852635,3516.3,3516.2,0.01225015]
[1641421279348,0.00852635,3516.3,3513.8,0.0127755]
[1641421279552,0.00852635,3516.3,3513.7,16.24]
[1641421279748,0.0129103,3516.4,3513.9,0.00511581]
[1641421279749,0.00795792,3516.2,3513.9,0.00511581]
[1641421279993,0.00795792,3516.2,3513.8,0.00568424]
[1641421280194,1.4303095,3516.1,3514.0,16.24]
[1641421280390,1.4303095,3516.1,3515.2,0.45152214]
[1641421280391,0.5604484,3515.7,3515.2,0.45152214]
[1641421280790,0.00454738,3515.6,3515.2,0.45152214]
[1641421281195,0.0129103,3516.4,3515.2,0.45152214]
[1641421281196,0.00397896,3515.5,3515.2,0.45152214]
[1641421281495,0.00341054,3515.4,3514.1,0.00397897]
[1641421281897,0.26771067,3515.6,3513.3,0.5]
[1641421281898,0.00284211,3515.3,3513.3,0.5]
[1641421282096,0.00284211,3515.3,3513.2,0.00909478]
[1641421282298,0.26771067,3515.6,3514.3,0.60675733]
[1641421282299,0.71169,3514.6,3514.3,0.60675733]
[1641421282500,0.71169,3514.6,3513.2,1.07850803]
[1641421282698,0.71169,3514.6,3514.4,0.0022737]
[1641421282896,0.71169,3514.6,3513.3,0.00852636]
[1641421283295,0.71169,3514.6,3513.3,3.0940879]
[1641421283497,0.26771067,3515.6,3513.5,0.01200366]
[1641421283498,1.17468763,3515.3,3513.5,0.01200366]
[1641421283748,1.17468763,3515.3,3513.5,19.3375652]
[1641421283949,0.00227369,3515.2,3514.0,0.71131]
[1641421284155,0.00227369,3515.2,3514.3,0.01296859]
[1641421284351,0.00170527,3515.1,3514.3,0.01296859]
[1641421284551,0.00170527,3515.1,3514.4,1.22850132]
[1641421284752,0.00113684,3515.0,3514.5,16.24]
[1641421284953,0.00113684,3515.0,3514.5,16.30725426]
[1641421285157,1.17468763,3516.4,3514.7,16.24]
[1641421285355,1.17468763,3516.4,3514.8,3.08556154]
[1641421285554,0.00625266,3516.3,3514.8,3.14747384]
[1641421285854,1.17468763,3516.4,3515.6,16.24]
[1641421285855,0.00568423,3516.2,3515.6,16.24]
[1641421286053,0.00568423,3516.2,3515.6,16.95101]
[1641421286254,3.88837317,3517.7,3515.7,0.66258174]
[1641421286255,0.00511581,3516.1,3515.7,0.66258174]
[1641421286454,0.00511581,3516.1,3515.8,4.75934214]
[1641421286657,0.00454739,3516.0,3515.9,16.24]
[1641421286854,0.00454739,3516.0,3515.9,16.30554899]
[1641421287255,1.17468763,3516.6,3515.9,16.31802327]
[1641421287256,3.538e-05,3516.6,3515.9,16.31802327]
[1641421287504,3.538e-05,3516.6,3516.3,0.71079]
[1641421287698,0.00284212,3516.5,3516.4,1.65137705]
[1641421287895,0.00284212,3516.5,3516.4,1.71692604]
[1641421288095,0.00284212,3516.5,3516.4,1.65137705]
[1641421288696,0.00284212,3516.5,3516.4,17.89137705]
[1641421289195,0.00284212,3516.5,3516.4,17.95692604]
[1641421289397,0.00284212,3516.5,3516.4,17.89137705]
[1641421289999,0.00284212,3516.5,3516.4,17.96951377]
[1641421291362,0.00284212,3516.5,3516.4,17.95692604]
[1641421291755,0.00284212,3516.5,3516.4,18.66770604]
[1641421292363,0.7137971,3517.8,3516.4,18.66770604]
[1641421292562,0.7137971,3517.8,3517.7,1.35787954]
[1641421293762,0.7137971,3517.8,3517.7,1.88568314]
[1641421296296,2.13225,3519.5,3517.7,1.88568314]
[1641421296297,0.7137971,3519.9,3519.5,1.0]
[1641421296494,0.99245044,3521.0,3519.8,0.01283246]
[1641421296693,0.99245044,3521.0,3520.0,0.01216626]
[1641421297198,5.37717174,3521.6,3520.1,0.46653578]
[1641421297398,5.37717174,3521.6,3520.1,2.99286262]
[1641421297597,1.18198268,3521.4,3520.2,16.24]
[1641421297800,1.18198268,3521.4,3520.5,1.41077107]
[1641421298001,1.18198268,3521.4,3520.1,0.46653578]
[1641421298002,1.18198268,3521.4,3521.3,1.38411905]
[1641421298203,1.14198268,3521.4,3521.3,1.95126618]
[1641421299047,0.13819997,3521.7,3521.3,1.95126618]
[1641421299449,0.02898959,3521.6,3521.3,1.95126618]
[1641421299852,0.13819997,3521.7,3521.3,1.95126618]
[1641421299853,0.02842117,3521.5,3521.3,1.95126618]
[1641421300253,0.02785274,3521.4,3521.3,1.95126618]
[1641421300455,0.02785274,3521.4,3521.3,0.56714713]
[1641421301054,1.62977782,3521.0,3519.9,0.00169199]
[1641421301256,0.02785274,3521.4,3520.8,0.5645246]
[1641421301455,0.02501063,3520.9,3520.8,0.5645246]
[1641421301656,0.02728432,3521.3,3520.8,0.5645246]
[1641421301857,0.02501063,3520.9,3520.8,0.5645246]
[1641421302059,0.01298053,3521.4,3520.8,0.5645246]
[1641421302060,0.0267159,3521.2,3520.8,0.5645246]
[1641421302256,0.02501063,3520.9,3520.8,0.5645246]
[1641421302494,0.02614747,3521.1,3519.9,0.00169199]
[1641421302694,0.01298053,3521.4,3519.9,0.00169199]
[1641421302695,0.02501063,3520.9,3519.9,0.00169199]
[1641421302895,0.01298053,3521.4,3519.9,0.00169199]
[1641421302896,0.02557905,3521.0,3519.9,0.00169199]
[1641421303100,0.0244422,3520.8,3519.9,0.00169199]
[1641421303304,0.02501063,3520.9,3519.9,0.00169199]
[1641421303599,0.01298053,3521.4,3519.9,0.00169199]
[1641421303600,0.0244422,3520.8,3520.3,0.59529351]
[1641421304000,0.02387378,3520.7,3520.3,0.59529351]
[1641421304399,0.02330536,3520.6,3520.3,0.59529351]
[1641421304802,0.02273693,3520.5,3520.3,0.59529351]
[1641421305200,0.02216851,3520.4,3520.3,0.59529351]
[1641421307846,0.02216851,3520.4,3519.9,0.00169199]
[1641421308050,0.68274851,3520.4,3517.8,16.24]
[1641421308250,0.68274851,3520.4,3517.7,3.61106891]
[1641421308453,0.68274851,3520.4,3518.2,0.01250532]
[1641421308454,4.01789556,3520.3,3518.2,0.01250532]
[1641421308650,1.0,3520.2,3518.2,0.01250532]
[1641421308849,1.4218,3519.3,3518.2,0.01250532]
[1641421309049,1.4218,3519.3,3518.3,0.51448171]
[1641421309250,0.01277795,3518.7,3515.7,16.9510169]
[1641421309454,0.01269996,3517.9,3515.6,3.66493538]
[1641421309657,0.01269996,3517.9,3516.8,0.0073895]
[1641421310099,1.42212,3518.4,3516.8,0.0073895]
[1641421310406,1.42212,3518.4,3516.2,2.86191931]
[1641421310407,0.71113,3517.7,3517.2,0.59916969]
[1641421310701,0.71113,3517.7,3517.3,0.00454739]
[1641421311105,0.71113,3517.7,3517.1,1.21462642]
[1641421311106,0.00113685,3518.3,3517.1,1.21462642]
[1641421311301,0.00113685,3518.3,3517.2,0.00511581]
[1641421311503,0.57113362,3518.0,3517.6,0.51384825]
[1641421311699,0.57113362,3518.0,3517.2,0.00511581]
[1641421311901,0.57113362,3518.0,3517.7,0.00227369]
[1641421312100,0.57113362,3518.0,3515.7,0.01364216]
[1641421312500,0.57113362,3518.0,3516.5,1.06723896]
[1641421312702,0.57113362,3518.0,3517.2,0.49157937]
[1641421313001,0.71105,3518.1,3517.3,0.00454739]
[1641421313400,0.13933682,3518.3,3517.3,0.00454739]
[1641421314042,0.13933682,3518.3,3518.0,0.56555056]
[1641421314542,0.08933682,3518.3,3518.1,0.00113685]
[1641421314743,1.404,3518.5,3518.1,0.00113685]
[1641421315548,1.404,3518.5,3518.4,1.4202665]
[1641421315949,0.00113684,3518.5,3518.4,1.4202665]
[1641421316153,0.00113684,3518.5,3518.4,17.6602665]
[1641421316349,0.00113684,3518.5,3518.4,19.37377145]
[1641421316751,0.00113684,3518.5,3518.4,17.7385016]
[1641421317594,5.6208,3521.0,3518.4,16.3182351]
[1641421317794,5.6208,3521.0,3518.6,0.71045]
[1641421317994,0.0119369,3520.6,3518.6,0.71045]
[1641421318194,0.0119369,3520.6,3518.7,3.77839685]
[1641421318395,5.6208,3521.0,3518.7,5.19924145]
[1641421318396,0.01136847,3520.5,3518.7,5.19924145]
[1641421318596,0.01136847,3520.5,3520.3,0.43407207]
[1641421318799,0.71047,3521.1,3520.3,0.43407207]
[1641421318800,0.01080005,3520.4,3520.3,0.43407207]
[1641421318996,0.01080005,3520.4,3520.1,1.1007744]
[1641421319397,0.01023163,3520.3,3520.1,1.1007744]
[1641421319799,0.0096632,3520.2,3520.1,1.1007744]
[1641421319999,0.0096632,3520.2,3520.1,1.61241239]
[1641421320800,0.0096632,3520.2,3519.0,1.44646204]
[1641421321253,0.43651264,3520.5,3519.0,1.44646204]
[1641421321254,0.00909478,3520.1,3519.0,1.44646204]
[1641421321546,0.00852636,3520.0,3519.1,1.44646204]
[1641421321743,0.00852636,3520.0,3519.8,1.66529577]
[1641421321944,0.00795793,3519.9,3519.8,1.66529577]
[1641421322548,0.00795793,3519.9,3519.8,1.18762917]
[1641421322951,0.00795793,3519.9,3519.8,1.12762917]
[1641421323152,0.00795793,3519.9,3518.8,1.44646204]
[1641421323549,0.61254268,3519.8,3519.4,0.44035579]
[1641421323751,0.00738951,3519.8,3519.4,0.44035579]
[1641421323952,0.00682109,3519.7,3519.4,0.44035579]
[1641421324254,1.19125733,3520.3,3518.9,1.29355587]
[1641421324255,0.00625266,3519.6,3518.9,1.29355587]
[1641421324658,0.00568424,3519.5,3518.9,1.29355587]
[1641421324851,0.00568424,3519.5,3518.7,0.00177302]
[1641421325096,0.00511582,3519.4,3518.7,0.00177302]
[1641421325297,0.00511582,3519.4,3518.7,0.47484524]
[1641421325497,0.00454739,3519.3,3518.7,0.47484524]
[1641421325696,0.00454739,3519.3,3519.0,1.03262658]
[1641421325896,0.00397897,3519.2,3519.0,1.03262658]
[1641421326095,0.00397897,3519.2,3518.7,0.47484524]
[1641421326302,0.7107,3519.8,3518.7,0.47484524]
[1641421326303,0.00341055,3519.1,3518.7,0.47484524]
[1641421326703,0.00284212,3519.0,3518.7,0.47484524]
[1641421327102,0.44760623,3519.6,3518.7,1.53735571]
[1641421327103,0.0022737,3518.9,3518.7,1.53735571]
[1641421327504,0.00170527,3518.8,3518.7,1.53735571]
[1641421327904,0.00170527,3518.8,3518.7,0.47484524]
[1641421328305,0.00170527,3518.8,3518.7,0.00177302]